bitfinex-derivatives/quotes_BTCF0:USTF0_20251023
["timestamp","ask_amount","ask_price","bid_price","bid_amount"]
[1761238599948,0.61473987,110430.0,110420.0,0.21355]
[1761238600151,0.61473987,110430.0,110420.0,0.41658968]
[1761238600448,0.63856965,110430.0,110420.0,0.21355]
[1761238600752,0.30028965,110430.0,110420.0,0.41658968]
[1761238601051,0.61224489,110430.0,110420.0,0.16355]
[1761238601254,0.61413987,110430.0,110420.0,0.16355]
[1761238601450,0.6382848,110430.0,110420.0,0.16355]
[1761238601652,0.6382848,110430.0,110420.0,0.21355]
[1761238602454,0.6382848,110430.0,110420.0,0.16355]
[1761238603559,0.0905494,110410.0,110400.0,0.2541021]
[1761238603766,0.42863735,110410.0,110400.0,0.3041077]
[1761238603966,0.45476211,110410.0,110400.0,0.3041077]
[1761238604260,0.58188211,110410.0,110400.0,0.21355]
[1761238604656,0.58188211,110410.0,110400.0,0.36658968]
[1761238604959,0.58188211,110410.0,110400.0,0.17538]
[1761238605544,0.58188211,110410.0,110400.0,0.21355]
[1761238605749,0.58136211,110410.0,110400.0,0.40658968]
[1761238605949,0.58136211,110410.0,110400.0,0.41658968]
[1761238606257,0.58136211,110410.0,110400.0,0.36658968]
[1761238606452,0.58136211,110410.0,110400.0,0.41658968]
[1761238606654,0.58136211,110410.0,110400.0,0.36658968]
[1761238606956,0.58136211,110410.0,110400.0,0.41658968]
[1761238607951,0.24388211,110410.0,110400.0,0.21355]
[1761238608158,0.55511735,110410.0,110400.0,0.41658968]
[1761238608359,0.58088211,110410.0,110400.0,0.41658968]
[1761238608562,0.58088211,110410.0,110400.0,0.50714718]
[1761238608748,0.11676211,110410.0,110400.0,0.50714718]
[1761238608951,0.33696795,110410.0,110400.0,0.50714718]
[1761238609154,0.33700795,110410.0,110400.0,0.71018686]
[1761238609452,0.33696795,110410.0,110400.0,0.71018686]
[1761238609651,8.795e-05,110410.0,110400.0,1.11018686]
[1761238611256,8.795e-05,110410.0,110400.0,1.44694686]
[1761238611757,0.14693676,110430.0,110420.0,0.16355]
[1761238611955,0.03225253,110430.0,110420.0,0.50713248]
[1761238613357,0.08069557,110430.0,110420.0,0.50713248]
[1761238613757,0.23618967,110430.0,110420.0,0.21355]
[1761238613961,0.26671714,110430.0,110420.0,0.21355]
[1761238614357,0.24439886,110430.0,110420.0,0.21355]
[1761238614557,0.26680042,110430.0,110420.0,0.21355]
[1761238615360,0.24439886,110430.0,110420.0,0.21355]
[1761238615664,0.58067886,110430.0,110420.0,0.21355]
[1761238616062,0.58067886,110430.0,110420.0,0.41658968]
[1761238616257,0.64569364,110430.0,110420.0,0.17538]
[1761238616561,0.64569364,110430.0,110420.0,0.11447]
[1761238617157,0.2169925,110420.0,110410.0,0.125]
[1761238617367,0.30813204,110420.0,110410.0,0.175]
[1761238618367,0.24311726,110420.0,110410.0,0.37803968]
[1761238618867,0.32428825,110420.0,110410.0,0.37803968]
[1761238619063,0.32428825,110420.0,110410.0,0.27911537]
[1761238619366,0.39160769,110420.0,110410.0,0.00268885]
[1761238619564,0.39160769,110420.0,110410.0,0.31675853]
[1761238619759,0.8085785,110420.0,110410.0,0.31675853]
[1761238619961,0.69526807,110420.0,110410.0,0.31675853]
[1761238620160,0.69526807,110420.0,110410.0,0.05]
[1761238620355,0.2170007,110410.0,110400.0,0.41859858]
[1761238620556,0.30826011,110410.0,110400.0,0.2655589]
[1761238620760,0.30826011,110410.0,110400.0,0.37803968]
[1761238620956,0.24312546,110410.0,110400.0,0.11103]
[1761238621363,0.32453627,110410.0,110400.0,0.11103]
[1761238622171,0.30826694,110410.0,110400.0,0.11103]
[1761238622567,0.2521887,110400.0,110390.0,0.125]
[1761238622762,0.2170169,110390.0,110380.0,0.42853688]
[1761238622963,0.27401644,110390.0,110380.0,0.1295296]
[1761238623266,0.24958807,110390.0,110380.0,0.38256928]
[1761238623467,0.24958807,110390.0,110380.0,0.1795296]
[1761238623664,0.29844448,110390.0,110370.0,0.29981445]
[1761238623972,0.2170497,110350.0,110340.0,0.00261124]
[1761238624164,0.2522546,110320.0,110310.0,0.09686]
[1761238624364,0.5890946,110320.0,110310.0,0.29989968]
[1761238624569,0.2522546,110320.0,110310.0,0.29989968]
[1761238624766,0.5890546,110320.0,110310.0,0.29989968]
[1761238625067,0.49843,110320.0,110310.0,0.39053268]
[1761238625269,0.49852735,110320.0,110310.0,0.39053268]
[1761238625570,0.58915215,110320.0,110310.0,0.39661694]
[1761238626163,0.25235215,110320.0,110310.0,0.09686]
[1761238626358,0.58903215,110320.0,110310.0,0.29989968]
[1761238626959,0.0906328,110310.0,110300.0,0.20757257]
[1761238627164,0.2170828,110310.0,110300.0,0.39507357]
[1761238628385,0.02443484,110310.0,110300.0,0.79507357]
[1761238628662,0.66910632,110320.0,110310.0,0.1390626]
[1761238628869,0.64467148,110320.0,110310.0,0.25146968]
[1761238629063,0.64467148,110320.0,110310.0,0.34210228]
[1761238629267,0.63643698,110320.0,110310.0,0.34210228]
[1761238629465,0.63643698,110320.0,110310.0,0.39053228]
[1761238629872,0.63643698,110320.0,110310.0,0.09686]
[1761238630070,0.63643698,110320.0,110310.0,0.39053228]
[1761238630270,0.63607698,110320.0,110310.0,0.39053228]
[1761238631272,0.61174031,110320.0,110310.0,0.29989968]
[1761238631464,0.61162031,110320.0,110310.0,0.09686]
[1761238631670,0.61162031,110320.0,110310.0,0.29989968]
[1761238632077,0.61162031,110320.0,110310.0,0.39053228]
[1761238632672,0.18491161,110320.0,110310.0,0.39053228]
[1761238632876,0.02433667,110340.0,110330.0,0.1874761]
[1761238633078,0.0647382,110370.0,110360.0,0.1463218]
[1761238633272,0.0905753,110380.0,110370.0,0.2020435]
[1761238633578,0.5581423,110390.0,110380.0,0.2020353]
[1761238633773,0.5581423,110390.0,110380.0,0.40507498]
[1761238633979,0.0905846,110370.0,110350.0,0.25876968]
[1761238634288,0.0906028,110350.0,110330.0,0.0906118]
[1761238634477,0.5533328,110350.0,110340.0,0.11146]
[1761238634675,0.5533328,110350.0,110340.0,0.31449968]
[1761238634872,0.2170528,110350.0,110340.0,0.31449968]
[1761238635181,0.5533328,110350.0,110340.0,0.31449968]
[1761238635574,0.5533328,110350.0,110340.0,0.40510758]
[1761238636174,0.5533298,110350.0,110340.0,0.40510768]
[1761238636380,0.2170498,110350.0,110340.0,0.40510768]
[1761238637886,0.12645,110350.0,110340.0,0.40510768]
[1761238638077,0.5880277,110360.0,110350.0,0.2020598]
[1761238638387,0.0905833,110370.0,110360.0,0.2020459]
[1761238638580,0.2522098,110380.0,110370.0,0.2020433]
[1761238638883,0.5879298,110380.0,110370.0,0.40508298]
[1761238639293,0.2522098,110380.0,110370.0,0.40508298]
[1761238639479,0.2522098,110380.0,110370.0,0.2020433]
[1761238639681,0.2522098,110380.0,110370.0,0.40508298]
[1761238640289,0.2522098,110380.0,110370.0,0.2020433]
[1761238640483,0.2522098,110380.0,110370.0,0.40508298]
[1761238642086,0.2522098,110380.0,110370.0,0.40448298]
[1761238642387,0.5571022,110390.0,110380.0,0.2020351]
[1761238642685,0.2218222,110390.0,110380.0,0.40507478]
[1761238643279,0.28641636,110390.0,110380.0,0.40507478]
[1761238643886,0.19584416,110390.0,110380.0,0.40507478]
[1761238644078,0.0953669,110390.0,110380.0,0.40507478]
[1761238644888,0.2154169,110390.0,110380.0,0.11146]
[1761238645086,0.2154169,110390.0,110380.0,0.2020351]
[1761238645288,0.28001106,110390.0,110380.0,0.2020351]
[1761238645488,0.27801106,110390.0,110380.0,0.2020351]
[1761238646887,0.18744416,110390.0,110380.0,0.40507478]
[1761238647081,0.27801126,110390.0,110380.0,0.40507478]
[1761238648587,0.27801126,110390.0,110380.0,0.2020351]
[1761238648886,0.27801126,110390.0,110380.0,0.40507478]
[1761238649090,0.27801126,110390.0,110380.0,0.29361478]
[1761238649386,0.27801126,110390.0,110380.0,0.1509951]
[1761238650392,0.27801126,110390.0,110380.0,0.2114151]
[1761238650581,0.27801126,110390.0,110380.0,0.41445478]
[1761238651385,0.2134171,110390.0,110380.0,0.41445478]
[1761238651690,0.2134171,110390.0,110380.0,0.1509953]
[1761238652086,0.0905835,110370.0,110360.0,0.0905846]
[1761238652291,0.2134035,110370.0,110360.0,0.2114246]
[1761238652488,0.2134035,110370.0,110360.0,0.5293846]
[1761238652683,0.2134035,110370.0,110360.0,0.73242428]
[1761238652888,0.31578702,110380.0,110370.0,0.2114235]
[1761238653085,0.31578702,110380.0,110370.0,0.41446318]
[1761238654093,0.2508907,110380.0,110370.0,0.41446318]
[1761238654384,0.448092,110390.0,110380.0,0.2114154]
[1761238654385,0.2371523,110390.0,110380.0,0.2114154]
[1761238654589,0.2161874,110390.0,110380.0,0.32387968]
[1761238654784,0.2161874,110390.0,110380.0,0.65763968]
[1761238654985,0.2508853,110380.0,110370.0,0.2114179]
[1761238655183,0.16031,110380.0,110370.0,0.74817758]
[1761238655385,0.2508853,110380.0,110370.0,0.74817758]
[1761238655596,0.2508853,110380.0,110370.0,0.41445758]
[1761238655785,0.2508853,110380.0,110370.0,0.74805758]
[1761238656793,0.2508853,110380.0,110370.0,0.88556753]
[1761238657485,0.2508853,110380.0,110370.0,0.5450179]
[1761238659694,0.2508853,110380.0,110370.0,0.88556753]
[1761238660193,0.2508853,110380.0,110370.0,0.55196753]
[1761238660388,0.2508853,110380.0,110370.0,0.5444179]
[1761238660891,0.2134033,110370.0,110360.0,0.21771453]
[1761238661096,0.2134033,110370.0,110360.0,0.12712763]
[1761238661303,0.2134197,110350.0,110340.0,0.2114479]
[1761238661503,0.2134197,110350.0,110340.0,0.5443679]
[1761238662592,0.2134197,110350.0,110340.0,0.88491753]
[1761238662792,0.21342,110350.0,110340.0,0.54799662]
[1761238662989,0.21342,110350.0,110340.0,0.88854625]
[1761238664190,0.21342,110350.0,110340.0,0.54799662]
[1761238664394,0.21342,110350.0,110340.0,0.88854625]
[1761238664991,0.21342,110350.0,110340.0,0.54799662]
[1761238665196,0.21342,110350.0,110340.0,0.88854625]
[1761238665495,0.2509073,110360.0,110350.0,0.2114397]
[1761238665695,0.1512673,110360.0,110350.0,0.55198933]
[1761238665907,0.06067,110360.0,110350.0,0.55198933]
[1761238666098,0.2134109,110370.0,110360.0,0.2114315]
[1761238666298,0.2134109,110370.0,110360.0,0.55198113]
[1761238666490,0.2134109,110370.0,110360.0,0.88442113]
[1761238671904,0.2134109,110370.0,110340.0,0.21506942]
[1761238671905,0.2134197,110350.0,110340.0,0.21506942]
[1761238672297,0.2134197,110350.0,110340.0,0.88741905]
[1761238673802,0.2134197,110350.0,110340.0,0.55561905]
[1761238673999,0.2134197,110350.0,110340.0,0.88729905]
[1761238675005,0.2134197,110350.0,110340.0,0.54674942]
[1761238675208,0.0905997,110350.0,110340.0,0.88729905]
[1761238675700,0.1280815,110360.0,110350.0,0.17834]
[1761238675701,0.246995,110360.0,110350.0,0.17834]
[1761238675898,0.246995,110360.0,110350.0,0.51888963]
[1761238676604,0.246995,110360.0,110350.0,0.17834]
[1761238678708,0.24324,110350.0,110340.0,0.56176974]
[1761238679009,0.2432482,110340.0,110330.0,0.13585832]
[1761238680496,0.2432482,110340.0,110330.0,0.04811832]
[1761238681103,0.5747682,110340.0,110330.0,0.04811832]
[1761238681404,0.2095264,110330.0,110320.0,0.04811832]
[1761238681605,0.2095264,110330.0,110320.0,0.13585832]
[1761238682002,0.2095264,110330.0,110320.0,0.04811832]
[1761238682204,0.5409664,110330.0,110320.0,0.04811832]
[1761238682509,0.5409664,110330.0,110320.0,0.18291292]
[1761238682911,0.5409664,110330.0,110320.0,0.04811832]
[1761238683501,0.5409664,110330.0,110320.0,0.13585832]
[1761238683808,0.5409664,110330.0,110320.0,0.22648272]
[1761238684004,0.2095264,110330.0,110320.0,0.13585832]
[1761238684211,0.5407664,110330.0,110320.0,0.22648292]
[1761238684797,0.2095264,110330.0,110320.0,0.22648292]
[1761238685203,0.5406864,110330.0,110320.0,0.22648292]
[1761238685804,0.5406864,110330.0,110320.0,0.13585832]
[1761238687610,0.5406864,110330.0,110320.0,0.04811832]
[1761238688013,0.5406864,110330.0,110320.0,0.09228832]
[1761238689210,0.5406864,110330.0,110320.0,0.04811832]
[1761238689412,0.2095264,110330.0,110320.0,0.18291292]
[1761238689712,0.1842731,110340.0,110330.0,0.0906164]
[1761238689902,0.1842731,110340.0,110330.0,0.51890603]
[1761238689903,0.2432531,110340.0,110330.0,0.51890603]
[1761238690615,0.2432482,110340.0,110330.0,0.51890603]
[1761238690814,0.03373,110340.0,110330.0,0.56702435]
[1761238691111,0.1243354,110350.0,110340.0,0.0906082]
[1761238691417,0.2469968,110360.0,110350.0,0.17834]
[1761238691612,0.2469968,110360.0,110350.0,0.51888963]
[1761238692613,0.1564,110360.0,110350.0,0.51888963]
[1761238693014,0.2469915,110360.0,110350.0,0.51888963]
[1761238694611,0.2469915,110360.0,110350.0,0.08774]
[1761238694805,0.2469915,110360.0,110350.0,0.17834]
[1761238695624,0.2469915,110360.0,110350.0,0.51888963]
[1761238696317,0.2469915,110360.0,110350.0,0.17834]
[1761238696616,0.2469915,110360.0,110350.0,0.08774]
[1761238696815,0.2469915,110360.0,110340.0,0.37907832]
[1761238696816,0.2095099,110350.0,110340.0,0.56701085]
[1761238697017,0.2095099,110350.0,110340.0,0.55738122]
[1761238697209,0.2095099,110350.0,110340.0,0.89793085]
[1761238698009,0.2095099,110350.0,110340.0,0.1783483]
[1761238698209,0.2095099,110350.0,110340.0,0.5092683]
[1761238698616,0.2095099,110350.0,110340.0,0.41866]
[1761238698819,0.2432483,110340.0,110330.0,0.13585832]
[1761238699013,0.2432483,110340.0,110330.0,0.04811832]
[1761238699517,0.2095264,110330.0,110320.0,0.37903832]
[1761238700515,0.2095264,110330.0,110320.0,0.55740292]
[1761238700711,0.2095264,110330.0,110320.0,0.46677832]
[1761238700921,0.2095264,110330.0,110320.0,0.42320832]
[1761238702319,0.2095264,110330.0,110320.0,0.09228832]
[1761238703314,0.2095264,110330.0,110320.0,0.11937832]
[1761238704013,0.2095264,110330.0,110320.0,0.21000292]
[1761238706009,0.2095264,110330.0,110320.0,0.04811832]
[1761238706216,0.2095264,110330.0,110320.0,0.13874292]
[1761238706519,0.2405964,110330.0,110320.0,0.18862292]
[1761238707121,0.2405964,110330.0,110320.0,0.52917255]
[1761238707420,0.2405964,110330.0,110320.0,0.18862292]
[1761238712724,0.2405964,110330.0,110320.0,0.09799832]
[1761238713427,0.2405964,110330.0,110320.0,0.07305832]
[1761238714228,0.2405964,110330.0,110320.0,0.02494]
[1761238717021,0.2405964,110330.0,110320.0,0.04988]
[1761238717526,0.2405964,110330.0,110320.0,0.1405046]
[1761238720429,0.2405964,110330.0,110320.0,0.34389059]
[1761238721519,0.2405964,110330.0,110320.0,0.1405044]
[1761238722731,0.2405964,110330.0,110320.0,0.04988]
[1761238723227,0.2405964,110330.0,110320.0,0.1405044]
[1761238723620,0.2405964,110330.0,110320.0,0.25326619]
[1761238724231,0.2405964,110330.0,110320.0,0.04988]
[1761238724433,0.2405964,110330.0,110320.0,0.25326619]
[1761238726836,0.2405964,110330.0,110320.0,0.37529164]
[1761238727335,0.40330222,110330.0,110320.0,0.37529164]
[1761238727731,0.42465054,110330.0,110320.0,0.16270582]
[1761238728334,0.26194472,110330.0,110320.0,0.46591624]
[1761238728532,0.2405964,110330.0,110320.0,0.46591624]
[1761238728832,0.40330222,110330.0,110320.0,0.21258582]
[1761238729033,0.40330222,110330.0,110320.0,0.18764582]
[1761238729226,0.42465054,110330.0,110320.0,0.18764582]
[1761238729428,0.42465054,110330.0,110320.0,0.21258582]
[1761238729936,0.42465054,110330.0,110320.0,0.18764582]
[1761238730136,0.42465054,110330.0,110320.0,0.21258582]
[1761238730738,0.42465054,110330.0,110320.0,0.16270582]
[1761238731638,0.2249647,110320.0,110310.0,0.14423812]
[1761238731832,0.2249647,110320.0,110310.0,0.30694394]
[1761238733036,0.2249647,110320.0,110310.0,0.46964976]
[1761238733442,0.2249647,110320.0,110310.0,0.30694394]
[1761238734041,0.2249647,110320.0,110310.0,0.46964976]
[1761238734441,0.2249647,110320.0,110310.0,0.30694394]
[1761238735238,0.2249647,110320.0,110310.0,0.46964976]
[1761238736743,0.2249647,110320.0,110310.0,0.21631694]
[1761238736943,0.2249647,110320.0,110310.0,0.30694984]
[1761238739038,0.38767052,110320.0,110310.0,0.21631694]
[1761238739637,0.2249647,110320.0,110310.0,0.21631694]
[1761238739836,0.2249647,110320.0,110310.0,0.30694984]
[1761238740037,0.2249647,110320.0,110310.0,0.21631694]
[1761238740447,0.2249647,110320.0,110310.0,0.30694984]
[1761238742245,0.2249647,110320.0,110310.0,0.46965566]
[1761238743243,0.24936723,110320.0,110310.0,0.46965566]
[1761238743446,0.2249647,110320.0,110310.0,0.46965566]
[1761238752247,0.28191536,110320.0,110310.0,0.46965566]
[1761238752848,0.28191536,110320.0,110310.0,0.37902276]
[1761238753049,0.28191536,110320.0,110310.0,0.21631694]
[1761238753347,0.28191536,110320.0,110310.0,0.30694954]
[1761238753545,0.19129066,110320.0,110310.0,0.30694954]
[1761238753750,0.19177067,110330.0,110320.0,0.1138844]
[1761238753751,0.2405734,110330.0,110320.0,0.1138844]
[1761238753943,0.2405734,110330.0,110320.0,0.67907164]
[1761238754142,0.2405734,110330.0,110320.0,0.76969604]
[1761238755254,0.2405712,110330.0,110320.0,0.76969604]
[1761238755638,0.2405712,110330.0,110320.0,0.76965604]
[1761238756746,0.24859166,110330.0,110320.0,0.76965604]
[1761238757046,0.18244023,110330.0,110320.0,0.93236186]
[1761238757245,0.06897467,110330.0,110320.0,1.33236186]
[1761238757450,0.02446467,110330.0,110320.0,1.34399186]
[1761238758039,0.06897467,110330.0,110320.0,1.34399186]
[1761238758551,0.06897467,110330.0,110320.0,1.33236186]
[1761238758853,0.11888467,110330.0,110320.0,1.33236186]
[1761238759548,0.06897467,110330.0,110320.0,1.33236186]
[1761238759853,0.02446467,110330.0,110320.0,1.33236186]
[1761238760044,0.02446467,110330.0,110320.0,0.8442444]
[1761238760243,0.02446467,110330.0,110320.0,1.33236186]
[1761238761651,0.02446467,110330.0,110320.0,1.16965604]
[1761238761855,0.11888467,110330.0,110320.0,1.16965604]
[1761238762156,0.14814467,110330.0,110320.0,1.33236186]
[1761238762355,0.12368,110330.0,110320.0,1.33236186]
[1761238762655,0.07377,110330.0,110320.0,1.33236186]
[1761238763155,0.12218,110330.0,110320.0,1.33236186]
[1761238763755,0.07377,110330.0,110320.0,1.33236186]
[1761238763956,0.12218,110330.0,110320.0,1.33236186]
[1761238764261,0.12218,110330.0,110320.0,1.33220186]
[1761238765256,0.07377,110330.0,110320.0,1.00200186]
[1761238765450,0.07377,110330.0,110320.0,1.33220186]
[1761238765650,0.12218,110330.0,110320.0,1.33220186]
[1761238766847,0.12218,110330.0,110320.0,1.00200186]
[1761238767145,0.12218,110330.0,110320.0,1.33216186]
[1761238768157,0.2127959,110330.0,110320.0,1.33216186]
[1761238768755,0.12218,110330.0,110320.0,1.33216186]
[1761238769156,0.2127959,110330.0,110320.0,1.33216186]
[1761238770658,0.2127959,110330.0,110320.0,1.16945604]
[1761238771454,0.2127959,110330.0,110320.0,0.1138844]
[1761238771656,0.23726057,110330.0,110320.0,0.4439641]
[1761238771853,0.23726057,110330.0,110320.0,0.76937574]
[1761238776461,0.23726057,110330.0,110320.0,0.67875164]
[1761238777555,0.23726057,110330.0,110320.0,0.35334]
[1761238777756,0.23726057,110330.0,110320.0,0.67875164]
[1761238777957,0.23726057,110330.0,110320.0,0.35334]
[1761238778159,0.23726057,110330.0,110320.0,0.67875164]
[1761238778561,0.23726057,110330.0,110320.0,0.76937574]
[1761238778855,0.23726057,110330.0,110320.0,0.60664113]
[1761238779257,0.23726057,110330.0,110320.0,0.51601703]
[1761238779771,0.23726057,110330.0,110320.0,0.60664113]
[1761238780266,0.23726057,110330.0,110320.0,0.4439641]
[1761238780465,0.23726057,110330.0,110320.0,0.60664113]
[1761238783370,0.23726057,110330.0,110320.0,0.4439641]
[1761238783770,0.23726057,110330.0,110320.0,0.51601703]
[1761238783958,0.26974613,110330.0,110320.0,0.51601703]
[1761238784462,0.26974613,110330.0,110320.0,0.51577703]
[1761238785471,0.26974613,110330.0,110320.0,0.60640113]
[1761238785671,0.26974613,110330.0,110320.0,0.51577703]
[1761238786671,0.26974613,110330.0,110320.0,0.3531]
[1761238786870,0.26974613,110330.0,110320.0,0.51577703]
[1761238787872,0.23726057,110330.0,110320.0,0.51577703]
[1761238790677,0.1954343,110320.0,110310.0,0.00373112]
[1761238790877,0.1954343,110320.0,110310.0,0.16267703]
[1761238790878,0.21989897,110320.0,110310.0,0.16267703]
[1761238791680,0.21989897,110320.0,110310.0,0.16629304]
[1761238793678,0.21989897,110320.0,110310.0,0.25692564]
[1761238795180,0.21989897,110320.0,110310.0,0.16629304]
[1761238798479,0.1954343,110320.0,110310.0,0.16629304]
[1761238798677,0.1954343,110320.0,110310.0,0.25692564]
[1761238798980,0.1954343,110320.0,110310.0,0.16629304]
[1761238799472,0.21989897,110320.0,110310.0,0.16629304]
[1761238799672,0.1954343,110320.0,110310.0,0.25692534]
[1761238800383,0.1954343,110320.0,110310.0,0.16629304]
[1761238800581,0.1954343,110320.0,110310.0,0.25692564]
[1761238800992,0.22124057,110330.0,110320.0,0.0906244]
[1761238801276,0.22124057,110330.0,110320.0,0.58282143]
[1761238801478,0.10616,110330.0,110320.0,0.58282143]
[1761238801676,0.1967762,110330.0,110320.0,0.58282143]
[1761238801878,0.1967762,110330.0,110320.0,0.25330143]
[1761238802068,0.1967762,110330.0,110320.0,0.58278143]
[1761238802272,0.13062467,110330.0,110320.0,0.58278143]
[1761238802676,0.22124087,110330.0,110320.0,0.58278143]
[1761238802874,0.1904244,110320.0,110310.0,0.00361601]
[1761238803078,0.21488907,110320.0,110310.0,0.16267703]
[1761238803380,0.02446467,110320.0,110310.0,0.41598666]
[1761238803581,0.22124577,110330.0,110320.0,0.0906245]
[1761238803878,0.22124577,110330.0,110320.0,0.32944]
[1761238804084,0.1904245,110320.0,110310.0,0.16634798]
[1761238804285,0.21487956,110320.0,110300.0,0.00453289]
[1761238804479,0.0906573,110280.0,110270.0,0.04811832]
[1761238804680,0.1904573,110280.0,110270.0,0.21079535]
[1761238804886,0.1904573,110280.0,110270.0,0.04811832]
[1761238805081,0.0998,110280.0,110270.0,0.54019535]
[1761238805283,0.1904573,110280.0,110270.0,0.54019535]
[1761238805682,0.0229,110280.0,110270.0,0.79722406]
[1761238805985,0.0998,110290.0,110270.0,1.19722406]
[1761238806182,0.0998,110300.0,110290.0,0.0906493]
[1761238806375,0.0229,110300.0,110290.0,0.61517395]
[1761238806575,0.0998,110300.0,110290.0,0.36184762]
[1761238806887,0.0998,110300.0,110290.0,0.52452465]
[1761238808291,0.1904406,110300.0,110290.0,0.36184762]
[1761238809384,0.1904406,110300.0,110290.0,0.49207703]
[1761238809593,0.1904406,110300.0,110290.0,0.52452465]
[1761238809891,0.1904406,110300.0,110290.0,0.36184762]
[1761238810188,0.1904406,110300.0,110290.0,0.52452465]
[1761238810585,0.1904406,110300.0,110290.0,0.03244762]
[1761238810782,0.1904571,110280.0,110270.0,0.04811832]
[1761238810988,0.1904653,110270.0,110260.0,0.05322133]
[1761238811187,0.35314233,110270.0,110260.0,0.05322133]
[1761238811490,0.1904653,110270.0,110260.0,0.00453453]
[1761238811683,0.35314233,110270.0,110260.0,0.00453453]
[1761238811885,0.1904653,110270.0,110260.0,0.00453453]
[1761238812582,0.75314233,110270.0,110260.0,0.00453453]
[1761238812784,0.1904741,110260.0,110250.0,7.498e-05]
[1761238816093,0.5904741,110260.0,110250.0,7.498e-05]
[1761238816684,0.9197941,110260.0,110250.0,7.498e-05]
[1761238817084,0.1904741,110260.0,110250.0,0.3414912]
[1761238817589,0.0998,110260.0,110250.0,0.09075698]
[1761238817791,0.0998,110260.0,110250.0,0.7614932]
[1761238818092,0.0229,110260.0,110250.0,0.7614932]
[1761238818396,0.0998,110260.0,110250.0,0.42007698]
[1761238818589,0.0998,110260.0,110250.0,0.82609577]
[1761238819387,0.0998,110260.0,110250.0,0.7614932]
[1761238820288,0.05906,110260.0,110250.0,0.7614932]
[1761238820995,0.1904667,110270.0,110260.0,0.0906741]
[1761238821188,0.0998,110270.0,110260.0,0.0906741]
[1761238821387,0.0998,110270.0,110260.0,0.43209032]
[1761238822189,0.1904652,110270.0,110260.0,0.0906741]
[1761238822487,0.1904652,110270.0,110260.0,0.43209032]
[1761238822682,0.0998,110270.0,110260.0,0.43209032]
[1761238823083,0.1865634,110260.0,110250.0,0.15535535]
[1761238823292,0.1865634,110260.0,110250.0,0.32931498]
[1761238823597,0.1865634,110260.0,110250.0,0.32927498]
[1761238823796,0.1865634,110260.0,110250.0,7.498e-05]
[1761238824597,0.5865634,110260.0,110250.0,7.498e-05]
[1761238824996,0.5865634,110260.0,110230.0,0.0036739]
[1761238825297,0.1865888,110230.0,110220.0,0.09523708]
[1761238825493,0.16096269,110230.0,110220.0,0.42443708]
[1761238825690,0.16096269,110230.0,110220.0,0.42814874]
[1761238825892,0.16096269,110230.0,110220.0,0.33744784]
[1761238826093,0.16096269,110230.0,110220.0,0.09895474]
[1761238826094,0.16104423,110230.0,110220.0,0.09895474]
[1761238826295,0.16104423,110230.0,110220.0,0.42811474]
[1761238826492,0.16104423,110230.0,110220.0,0.33740784]
[1761238826692,0.16104423,110230.0,110220.0,0.33369618]
[1761238826892,0.1794868,110220.0,110210.0,0.32916]
[1761238827099,0.08878,110220.0,110210.0,0.419875]
[1761238827302,0.1794868,110220.0,110210.0,0.419875]
[1761238829504,0.08878,110220.0,110210.0,0.419875]
[1761238830207,0.08878,110220.0,110210.0,0.090715]
[1761238830404,0.1795033,110200.0,110190.0,0.11189287]
[1761238830603,0.1580316,110190.0,110180.0,0.00453782]
[1761238830905,0.0673,110190.0,110180.0,0.00453782]
[1761238831104,0.0673,110190.0,110180.0,0.34595404]
[1761238831601,0.0673,110190.0,110180.0,0.43669384]
[1761238832195,0.0673,110190.0,110180.0,0.00453782]
[1761238832502,0.0673,110190.0,110180.0,0.67877332]
[1761238832709,0.0673,110190.0,110180.0,0.34961332]
[1761238832909,0.0673,110190.0,110180.0,0.3373571]
[1761238833408,0.0673,110190.0,110180.0,0.0081971]
[1761238833613,0.0673,110190.0,110180.0,0.3373571]
[1761238834100,0.0673,110190.0,110180.0,0.33369782]
[1761238835714,0.0673,110190.0,110180.0,0.67511404]
[1761238836512,0.14328496,110190.0,110180.0,0.67511404]
[1761238837008,0.14328496,110190.0,110180.0,0.33365782]
[1761238837212,0.54335479,110190.0,110180.0,1e-08]
[1761238837401,0.88477101,110190.0,110180.0,1e-08]
[1761238837605,0.1580397,110180.0,110170.0,9.511e-05]
[1761238837801,0.02148,110160.0,110150.0,0.11089287]
[1761238838007,0.0907809,110130.0,110120.0,0.5642691]
[1761238838212,0.1580809,110130.0,110120.0,0.35188]
[1761238838521,0.1580809,110130.0,110120.0,0.3405]
[1761238838820,0.1795693,110120.0,110110.0,0.35188]
[1761238839032,0.1580976,110110.0,110100.0,0.00823082]
[1761238839218,0.15820858,110110.0,110100.0,0.00823082]
[1761238840029,0.15820858,110110.0,110100.0,0.00454112]
[1761238840224,0.08878,110080.0,110070.0,0.10704407]
[1761238840433,0.05504047,110080.0,110070.0,0.75500672]
[1761238840726,0.08889047,110080.0,110070.0,0.4135905]
[1761238841117,0.08889047,110080.0,110070.0,0.61788686]
[1761238841313,0.08889047,110080.0,110070.0,0.34054]
[1761238841521,0.08889047,110080.0,110070.0,0.4427505]
[1761238841720,0.08889047,110080.0,110070.0,0.1135905]
[1761238841923,0.08889047,110080.0,110070.0,0.4427505]
[1761238842124,0.08889047,110080.0,110070.0,0.64704686]
[1761238842328,0.08889047,110080.0,110070.0,0.4427505]
[1761238842528,0.08889047,110080.0,110070.0,0.31788686]
[1761238842731,0.08889047,110080.0,110070.0,0.64708686]
[1761238843232,0.08889047,110080.0,110070.0,0.4427905]
[1761238843526,0.00011047,110080.0,110070.0,1.04708686]
[1761238844128,0.08889047,110080.0,110070.0,0.71788686]
[1761238844334,0.08889047,110080.0,110070.0,0.64712686]
[1761238844523,0.08889047,110080.0,110070.0,0.4428305]
[1761238844725,0.08889047,110080.0,110060.0,0.12291232]
[1761238845020,0.1581302,110070.0,110060.0,0.00932002]
[1761238845225,0.0673,110050.0,110040.0,0.02287166]
[1761238845531,0.06739176,110050.0,110040.0,0.64726332]
[1761238845834,0.06739176,110050.0,110040.0,0.55640802]
[1761238846127,0.15823886,110050.0,110040.0,0.66963564]
[1761238846327,0.15823886,110050.0,110040.0,0.00011166]
[1761238846631,0.15823886,110050.0,110040.0,0.32935166]
[1761238847131,0.55823886,110050.0,110040.0,0.00011166]
[1761238847433,0.1581636,110030.0,110020.0,0.11777204]
[1761238847735,0.1581636,110030.0,110000.0,0.11322762]
[1761238847736,0.0908801,110010.0,110000.0,0.11322762]
[1761238848029,0.1581801,110010.0,110000.0,0.44246762]
[1761238848429,0.1796684,110000.0,109990.0,0.16337623]
[1761238848627,0.1581966,109990.0,109980.0,0.23160243]
[1761238848936,0.0673,109990.0,109980.0,0.56088243]
[1761238849121,0.0673,109990.0,109980.0,0.02730607]
[1761238849323,0.06738924,109990.0,109980.0,0.56088243]
[1761238849730,8.924e-05,109990.0,109980.0,0.65178713]
[1761238849929,0.02148,110020.0,109980.0,1.02178713]
[1761238850233,0.05493,110020.0,110010.0,0.20429636]
[1761238850441,0.02148,110020.0,110010.0,0.53361636]